bitfinex/quotes_SOLUSD_20251130
["timestamp","ask_amount","ask_price","bid_price","bid_amount"]
[1764532910073,7.2623214,137.7,137.69,0.72]
[1764532913265,7.2623214,137.7,137.68,0.72]
[1764532914774,7.9623214,137.7,137.67,0.72]
[1764532914981,0.7,137.69,137.67,0.72]
[1764532915482,0.7,137.69,137.66,61.29999998]
[1764532915859,0.7,137.69,137.67,0.67]
[1764532916376,7.9423214,137.7,137.67,0.67]
[1764532916763,7.2623214,137.7,137.67,2.88135776]
[1764532916965,7.2623214,137.7,137.68,0.67]
[1764532920378,10.46170893,137.71,137.68,2.88135776]
[1764532920569,38.33954977,137.74,137.7,2.21135776]
[1764532920878,38.33954977,137.74,137.71,2.21135776]
[1764532921274,7.26105602,137.73,137.72,0.67]
[1764532921453,7.94105602,137.73,137.7,0.67]
[1764532921657,7.94105602,137.73,137.68,16.07305435]
[1764532921658,0.68,137.72,137.69,0.67]
[1764532921863,0.68,137.72,137.69,2.88135776]
[1764532922275,7.26105602,137.73,137.71,2.21135776]
[1764532922469,7.94105602,137.73,137.7,2.88135776]
[1764532922671,7.26105602,137.73,137.71,0.67]
[1764532923486,7.26105602,137.73,137.71,2.88135776]
[1764532925690,7.26105602,137.73,137.68,19.27297849]
[1764532925691,7.26105602,137.73,137.7,2.21135776]
[1764532925895,7.94105602,137.73,137.7,2.21135776]
[1764532926199,7.94105602,137.73,137.7,2.88135776]
[1764532929495,7.26105602,137.73,137.68,73.3099449]
[1764532929702,3.88,137.72,137.68,2.21135776]
[1764532930289,0.68,137.71,137.68,2.21135776]
[1764532930488,7.26216412,137.7,137.68,2.21135776]
[1764532930665,7.26216412,137.7,137.68,2.88135776]
[1764532934369,7.26216412,137.7,137.66,8.80994492]
[1764532934576,7.94216412,137.7,137.67,2.88135776]
[1764532935598,7.94216412,137.7,137.68,0.67]
[1764532936704,7.26163677,137.71,137.68,0.67]
[1764532937001,7.94163677,137.71,137.68,0.67]
[1764532940099,7.94163677,137.71,137.68,2.88135776]
[1764532940489,7.94163677,137.71,137.68,4.12858103]
[1764532945004,0.68,137.7,137.67,3.45858103]
[1764532945210,0.68,137.7,137.67,4.12858103]
[1764532946088,0.68,137.7,137.68,0.67]
[1764532946408,7.9421697,137.7,137.68,0.67]
[1764532948613,7.9421697,137.7,137.67,4.12858103]
[1764532949304,7.9421697,137.7,137.68,0.67]
[1764532950415,7.9421697,137.7,137.67,0.71]
[1764532952724,7.9421697,137.7,137.67,4.16858103]
[1764532953624,7.9421697,137.7,137.67,3.45858103]
[1764532953805,7.9421697,137.7,137.68,0.71]
[1764532957320,7.9421697,137.7,137.67,0.71]
[1764532958735,7.9421697,137.7,137.67,4.16858103]
[1764532959226,7.9421697,137.7,137.68,0.71]
[1764532960624,7.9421697,137.7,137.67,4.16858103]
[1764532960824,7.9421697,137.7,137.67,3.45858103]
[1764532961023,7.9421697,137.7,137.68,0.71]
[1764532961229,7.9421697,137.7,137.67,0.71]
[1764532961521,7.9421697,137.7,137.68,0.71]
[1764532961723,11.1421697,137.7,137.68,0.71]
[1764532961923,29.29688248,137.7,137.68,0.71]
[1764532964729,0.66,137.69,137.65,68.56469542]
[1764532964936,0.66,137.69,137.67,3.45858103]
[1764532965109,0.66,137.69,137.66,4.16858103]
[1764532966325,7.92279416,137.69,137.67,0.71]
[1764532967035,7.92279416,137.69,137.67,3.45858103]
[1764532967530,7.26279416,137.69,137.68,0.71]
[1764532967701,7.26224974,137.7,137.68,4.16858103]
[1764532967901,7.26224974,137.7,137.69,3.45858103]
[1764532968227,7.92224974,137.7,137.67,4.16858103]
[1764532968535,18.38618203,137.7,137.67,4.16858103]
[1764532969033,17.72618203,137.7,137.68,0.71]
[1764532969225,7.26224974,137.7,137.68,0.71]
[1764532971145,7.92224974,137.7,137.68,0.71]
[1764532971435,26.07634955,137.71,137.68,4.16858103]
[1764532971645,33.34028184,137.71,137.68,4.16858103]
[1764532974137,14.52556906,137.71,137.69,4.16858103]
[1764532974544,14.52556906,137.71,137.7,0.71]
[1764532976118,14.52556906,137.71,137.7,4.16858103]
[1764532977813,14.52556906,137.71,137.7,0.71]
[1764532978013,14.52556906,137.71,137.69,4.16858103]
[1764532978325,15.19556906,137.71,137.69,0.71]
[1764532978726,15.19556906,137.71,137.68,3.45858103]
[1764532978727,25.4157287,137.71,137.68,3.45858103]
[1764532978927,8.80994492,137.7,137.68,4.16858103]
[1764532979843,8.80994492,137.7,137.66,64.49999998]
[1764532979844,7.26269155,137.69,137.66,61.29999998]
[1764532980020,7.93269155,137.69,137.67,4.16858103]
[1764532980334,7.26269155,137.69,137.68,0.71]
[1764532981219,7.26269155,137.69,137.67,3.45858103]
[1764532981419,7.26269155,137.69,137.67,4.16858103]
[1764532981943,7.26269155,137.69,137.68,0.71]
[1764532983638,7.26269155,137.69,137.67,3.45858103]
[1764532983845,7.26269155,137.69,137.67,4.16858103]
[1764532984845,7.26269155,137.69,137.68,0.71]
[1764532985845,7.26269155,137.69,137.68,4.16858103]
[1764532986033,7.26239739,137.7,137.68,4.16858103]
[1764532986235,7.26239739,137.7,137.69,4.16858103]
[1764532991559,7.26143915,137.72,137.69,4.16858103]
[1764532991734,28.61553108,137.72,137.7,0.71]
[1764532992125,0.67,137.71,137.67,65.46858101]
[1764532992427,29.14279662,137.71,137.67,61.29999998]
[1764532992846,0.67,137.7,137.67,61.29999998]
[1764532993026,3.2,137.69,137.67,61.29999998]
[1764532993237,3.87,137.69,137.66,0.71]
[1764532993636,25.68738845,137.69,137.66,4.16858103]
[1764532994259,32.95032518,137.69,137.66,4.16858103]
[1764532995537,11.13293673,137.69,137.66,4.16858103]
[1764532995739,32.95032518,137.69,137.66,4.16858103]
[1764532999151,32.95032518,137.69,137.66,3.45858103]
[1764532999451,32.95032518,137.69,137.66,4.16858103]
[1764533000361,32.95032518,137.69,137.66,2.21411311]
[1764533000662,10.46293673,137.69,137.67,2.92411311]
[1764533005969,11.14293673,137.69,137.66,2.89411311]
[1764533006171,32.96032518,137.69,137.66,2.89411311]
[1764533006957,11.14293673,137.69,137.66,2.89411311]
[1764533009480,10.46293673,137.69,137.67,2.91411311]
[1764533009669,21.81738845,137.7,137.68,2.21411311]
[1764533009874,7.26201638,137.71,137.69,2.21411311]
[1764533010054,21.81421559,137.71,137.7,2.21411311]
[1764533010381,21.81421559,137.71,137.69,0.7]
[1764533010563,22.53421559,137.71,137.69,0.7]
[1764533010763,21.81421559,137.71,137.69,2.91411311]
[1764533012164,29.07587241,137.71,137.69,2.91411311]
[1764533012754,29.07587241,137.71,137.69,0.7]
[1764533013686,29.79587241,137.71,137.69,0.7]
[1764533014780,0.72,137.7,137.67,64.21411309]
[1764533014983,0.72,137.7,137.67,61.29999998]
[1764533015191,3.92,137.7,137.67,61.99999998]
[1764533015684,0.72,137.69,137.67,61.99999998]
[1764533015888,22.53738845,137.69,137.67,61.99999998]
[1764533016089,29.80024878,137.69,137.67,61.99999998]
[1764533016277,29.80024878,137.69,137.67,61.29999998]
[1764533016480,0.72,137.68,137.67,61.29999998]
[1764533016787,29.80024878,137.69,137.67,61.29999998]
[1764533019681,29.80024878,137.69,137.66,0.7]
[1764533020191,29.80024878,137.69,137.66,2.91411311]
[1764533021685,29.80024878,137.69,137.66,0.7]
[1764533021893,7.98286033,137.69,137.66,0.7]
[1764533025372,20.36820504,137.7,137.68,2.21411311]
[1764533025574,10.46210319,137.71,137.69,0.7]
[1764533025802,30.83030823,137.71,137.69,2.91411311]
[1764533025999,30.83030823,137.71,137.69,0.7]
[1764533026204,10.46210319,137.71,137.69,2.91411311]
[1764533029015,10.46210319,137.71,137.7,2.21411311]
[1764533029187,10.46210319,137.71,137.7,0.7]
[1764533029506,3.2,137.71,137.7,2.91411311]
[1764533029685,29.07547877,137.72,137.7,2.91411311]
[1764533030003,7.26126318,137.72,137.7,2.91411311]
[1764533030189,16.0712081,137.72,137.7,2.91411311]
[1764533030391,16.0712081,137.72,137.7,0.7]
[1764533033825,16.0712081,137.72,137.7,2.91411311]
[1764533039311,16.0712081,137.72,137.7,0.7]
[1764533039312,16.7912081,137.72,137.7,0.7]
[1764533041110,16.7912081,137.72,137.69,2.89411311]
[1764533042688,16.7912081,137.72,137.69,2.21411311]
[1764533042888,16.7912081,137.72,137.7,0.68]
[1764533043189,16.0712081,137.72,137.7,0.68]
[1764533043405,16.0712081,137.72,137.7,2.89411311]
[1764533049600,16.0712081,137.72,137.71,2.89411311]
[1764533050700,0.72,137.76,137.71,11.70405803]
[1764533050902,3.92,137.76,137.74,2.21411311]
[1764533051123,25.72787264,137.76,137.74,2.21411311]
[1764533052917,32.9868738,137.76,137.75,2.21411311]
[1764533053134,32.9868738,137.76,137.74,2.21411311]
[1764533053420,32.2668738,137.76,137.74,2.21411311]
[1764533053725,32.2668738,137.76,137.74,2.89411311]
[1764533054119,32.9868738,137.76,137.74,2.89411311]
[1764533054827,32.2668738,137.76,137.74,2.89411311]
[1764533055320,10.45900116,137.76,137.74,2.89411311]
[1764533055627,21.80787264,137.77,137.75,2.21411311]
[1764533055826,7.25720863,137.8,137.76,2.21411311]
[1764533056004,10.45720863,137.8,137.77,2.21411311]
[1764533056204,8.80994492,137.79,137.77,2.89411311]
[1764533056413,16.06752781,137.79,137.77,2.89411311]
[1764533058532,8.80994492,137.79,137.78,2.89411311]
[1764533058737,7.45688235,137.81,137.78,2.89411311]
[1764533058937,16.26682727,137.81,137.79,2.89411311]
[1764533059432,16.26682727,137.81,137.8,0.68]
[1764533060434,16.26682727,137.81,137.79,2.21411311]
[1764533060435,16.26682727,137.81,137.79,3.45301999]
[1764533060736,16.26682727,137.81,137.79,4.13301999]
[1764533060919,16.26682727,137.81,137.79,0.68]
[1764533061229,16.26682727,137.81,137.78,3.45301999]
[1764533061230,0.2,137.81,137.8,4.13301999]
[1764533062014,0.2,137.81,137.8,12.94296491]
[1764533062837,0.2,137.81,137.8,20.19985895]
[1764533065543,0.2,137.81,137.8,7.93689404]
[1764533065717,0.2,137.81,137.8,10.70991403]
[1764533066049,0.2,137.81,137.8,11.41991403]
[1764533067241,0.2,137.81,137.8,72.71991401]
[1764533069421,0.87,137.81,137.76,62.00999998]
[1764533069622,22.63689792,137.81,137.77,11.42129762]
[1764533069841,0.67,137.8,137.77,11.42129762]
[1764533070242,22.46994913,137.8,137.77,11.42129762]
[1764533070445,22.46994913,137.8,137.77,7.96827763]
[1764533073439,0.67,137.79,137.75,0.71]
[1764533073743,22.47311784,137.79,137.75,0.71]
[1764533074142,0.67,137.79,137.75,0.71]
[1764533074642,7.92767749,137.79,137.75,0.71]
[1764533074833,21.80311784,137.78,137.75,0.71]
[1764533075035,21.80311784,137.78,137.75,11.42239317]
[1764533075431,21.80311784,137.78,137.76,0.71]
[1764533075630,7.25767749,137.79,137.76,0.71]
[1764533075841,29.06079533,137.79,137.76,0.71]
[1764533076147,21.80311784,137.79,137.76,4.16301999]
[1764533076365,3.2,137.8,137.78,3.45301999]
[1764533076560,21.99836512,137.81,137.78,3.45301999]
[1764533076760,21.99836512,137.81,137.79,0.71]
[1764533078047,21.99836512,137.81,137.79,4.16301999]
[1764533078360,0.2,137.81,137.8,0.71]
[1764533079257,7.45774587,137.81,137.8,0.71]
[1764533079757,7.45774587,137.81,137.79,0.71]
[1764533080557,7.45774587,137.81,137.79,4.16301999]
[1764533082359,0.2,137.81,137.79,4.16301999]
[1764533082760,0.2,137.81,137.8,0.71]
[1764533085553,0.2,137.81,137.79,3.45301999]
[1764533085754,0.2,137.81,137.79,4.16301999]
[1764533086156,0.2,137.81,137.8,3.45301999]
[1764533086556,0.2,137.81,137.8,4.16301999]
[1764533086767,0.2,137.81,137.8,11.41991403]
[1764533089977,0.2,137.81,137.8,14.61991403]
[1764533091075,0.2,137.81,137.8,23.71418209]
[1764533091669,0.2,137.81,137.8,85.01418207]
[1764533097380,0.2,137.83,137.82,69.1703631]
[1764533098289,0.2,137.83,137.82,17.40589213]
[1764533098463,0.2,137.83,137.82,86.16173308]
[1764533098969,0.2,137.83,137.82,89.34173308]
[1764533099577,0.2,137.83,137.82,105.65059708]
[1764533101179,0.2,137.83,137.82,44.15059708]
[1764533101370,0.2,137.85,137.84,25.40313206]
[1764533101569,0.2,137.85,137.84,32.76163086]
[1764533101772,0.2,137.85,137.84,33.44163086]
[1764533101967,0.2,137.85,137.84,28.57182891]
[1764533102281,0.2,137.85,137.84,31.75182891]
[1764533102585,0.2,137.85,137.84,32.43182891]
[1764533103188,0.2,137.85,137.84,39.68661707]
[1764533104400,0.2,137.85,137.84,39.97094021]
[1764533106273,0.2,137.85,137.84,36.79094021]
[1764533106466,0.2,137.85,137.84,39.99094021]
[1764533106988,0.2,137.85,137.84,36.53792022]
[1764533107194,0.2,137.85,137.84,39.99094021]
[1764533108666,0.2,137.87,137.85,9.09426806]
[1764533108875,0.2,137.88,137.87,9.09426806]
[1764533109196,0.2,137.88,137.87,12.54728805]
[1764533109395,0.2,137.88,137.87,13.22728805]
[1764533110589,1e-08,137.89,137.88,39.56185553]
[1764533110774,1e-08,137.89,137.88,105.66712387]
[1764533112392,0.2,137.91,137.89,9.09426806]
[1764533112595,0.2,137.91,137.89,9.77426806]
[1764533112768,0.2,137.91,137.89,23.65944556]
[1764533113791,0.2,137.91,137.89,22.97944556]
[1764533113986,0.2,137.91,137.89,23.65944556]
[1764533114789,0.2,137.91,137.89,85.15944556]
[1764533115891,0.2,137.91,137.89,89.3376813]
[1764533117878,0.2,137.91,137.89,85.88466131]
[1764533118579,0.2,137.91,137.89,85.15944556]
[1764533120370,0.2,137.91,137.89,83.91199967]
[1764533120995,0.2,137.91,137.89,93.45951182]
[1764533128901,0.2,137.91,137.89,90.27951182]
[1764533129086,0.2,137.91,137.89,93.45951182]
[1764533134904,0.2,137.91,137.89,84.63721542]
[1764533135511,0.2,137.91,137.9,70.39426806]
[1764533135804,0.2,137.91,137.9,71.10426806]
[1764533136411,0.2,137.91,137.9,75.51541626]
[1764533136710,0.2,137.91,137.9,82.76704787]
[1764533141413,0.2,137.91,137.9,85.23704787]
[1764533141789,0.2,137.91,137.9,85.94704787]
[1764533146093,0.2,137.91,137.9,91.99389392]
[1764533146302,0.2,137.91,137.9,85.94704787]
[1764533147513,0.91,137.93,137.91,25.40313206]
[1764533147514,0.2,137.93,137.91,25.40313206]
[1764533147713,0.2,137.93,137.92,15.18984216]
[1764533147921,0.2,137.93,137.92,18.10078045]
[1764533148092,0.2,137.93,137.92,20.57078045]
[1764533148293,0.2,137.93,137.92,21.28078045]
[1764533149821,0.2,137.93,137.92,28.53136049]
[1764533151321,0.2,137.93,137.92,22.4404222]
[1764533153402,0.2,137.93,137.92,83.7404222]
[1764533153811,0.2,137.94,137.93,9.09426806]
[1764533154010,0.2,137.94,137.93,18.11001061]
[1764533155522,0.2,137.94,137.93,24.65006498]
[1764533155729,0.2,137.94,137.93,25.35006498]
[1764533157328,0.87,137.94,137.93,24.65006498]
[1764533157509,0.2,137.94,137.93,27.83006498]
[1764533158811,0.2,137.94,137.93,28.53006498]
[1764533159304,0.2,137.94,137.93,89.83006498]
[1764533166162,0.2,137.95,137.94,61.38432314]
[1764533166312,0.2,137.97,137.96,4.69547134]
[1764533166513,0.2,137.97,137.96,5.66989724]
[1764533166819,0.2,137.97,137.96,17.38541626]
[1764533167218,0.2,137.97,137.96,75.30541626]
[1764533167419,0.2,137.97,137.96,77.78541626]
[1764533167630,0.2,137.97,137.96,78.48541626]
[1764533168223,0.2,137.97,137.96,81.32274587]
[1764533168426,0.2,137.97,137.96,85.73389407]
[1764533170021,0.67,137.99,137.97,9.09426806]
[1764533170222,0.67,137.99,137.98,21.44294618]
[1764533172441,0.67,138.01,137.99,0.28432314]
[1764533172744,0.67,138.01,138.0,14.19551902]
[1764533173042,0.67,138.01,138.0,75.57984216]
[1764533174234,0.67,138.01,138.0,82.82621897]
[1764533175146,0.67,138.01,138.0,79.64621897]
[1764533175341,0.67,138.01,138.0,73.08994492]
[1764533175545,0.67,138.01,138.0,72.11551902]
[1764533175740,0.67,138.01,138.0,75.29551902]
[1764533176247,0.67,138.01,138.0,82.54189583]
[1764533177151,0.67,138.01,138.0,21.44189583]
[1764533180145,0.67,138.01,138.0,19.23632173]
[1764533180841,0.67,138.01,138.0,21.44189583]
[1764533181433,0.67,138.01,137.99,9.45225557]
[1764533181633,0.67,138.01,137.99,12.63225557]
[1764533182350,0.67,138.01,137.99,13.86957492]
[1764533182553,0.67,138.01,138.0,3.44289345]
[1764533183035,0.67,138.01,138.0,64.54289345]
[1764533183837,0.67,138.01,138.0,61.1]
[1764533184052,0.67,138.01,138.0,64.54289345]
[1764533187522,0.67,138.01,138.0,61.1]
[1764533187929,0.67,138.01,138.0,68.34637681]
[1764533188252,4.11289345,138.01,137.96,11.98994492]
[1764533188451,4.11289345,138.01,137.96,15.43283837]
[1764533188653,0.67,138.0,137.96,12.25283837]
[1764533188953,0.67,138.0,137.96,15.43283837]
[1764533189154,7.91637965,138.0,137.96,22.68083856]
[1764533189554,0.67,137.99,137.96,22.68083856]
[1764533191859,0.67,137.99,137.96,15.43283837]
[1764533192051,7.91702906,137.99,137.95,74.97168564]
[1764533192250,0.67,137.98,137.95,74.97168564]
[1764533192454,0.67,137.98,137.95,13.87168564]
[1764533196463,11.36037172,137.98,137.94,8.80994492]
[1764533196634,11.36037172,137.98,137.94,11.98994492]
[1764533196843,0.67,137.97,137.94,11.98994492]
[1764533197046,0.67,137.97,137.94,22.68226672]
[1764533200372,0.67,137.97,137.94,19.50226672]
[1764533200672,0.67,137.97,137.94,22.68226672]
[1764533205173,0.67,137.97,137.94,19.50226672]
[1764533205473,0.67,137.97,137.94,22.68226672]
[1764533206068,0.67,137.97,137.94,19.50226672]
[1764533206266,0.67,137.97,137.94,22.68226672]
[1764533206646,0.67,137.97,137.94,19.23937327]
[1764533206870,0.67,137.97,137.94,80.33937327]
[1764533207174,0.67,137.97,137.94,77.15937327]
[1764533211477,0.67,137.97,137.94,80.60226672]
[1764533211674,7.91798647,137.97,137.94,80.60226672]
[1764533212366,0.67,137.96,137.94,80.60226672]
[1764533213870,7.24746235,137.99,137.96,8.80994492]
[1764533213871,0.67,137.99,137.96,8.80994492]
[1764533214177,0.67,137.99,137.96,12.25283837]
[1764533214354,0.67,137.99,137.96,12.97283837]
[1764533214561,0.67,138.0,137.97,0.72]
[1764533214975,0.67,138.0,137.96,12.97283837]
[1764533215183,0.67,138.0,137.97,3.44289345]
[1764533215350,4.11289345,138.0,137.96,12.97283837]
[1764533215759,0.69,137.99,137.96,12.97283837]
[1764533216672,7.93691473,137.99,137.96,12.97283837]
[1764533218778,7.93691473,137.99,137.96,74.07283837]
[1764533220595,10.68980818,137.99,137.96,69.90994492]
[1764533220795,11.38073331,137.98,137.96,61.1]
[1764533220997,0.69,137.97,137.94,8.80994492]
[1764533221219,4.13289345,137.97,137.94,11.98994492]
[1764533221532,3.44289345,137.95,137.92,61.5]
[1764533221697,3.44289345,137.94,137.9,8.80994492]
[1764533222060,0.69,137.93,137.9,9.52994492]
[1764533223007,7.94016605,137.93,137.9,9.52994492]
[1764533223585,0.69,137.92,137.89,11.98994492]
[1764533223759,0.69,137.92,137.89,12.70994492]
[1764533223955,0.69,137.92,137.89,16.15283837]
[1764533224385,7.25016605,137.93,137.9,3.44289345]
[1764533224686,7.94016605,137.93,137.9,4.16289345]
[1764533225683,7.94016605,137.93,137.9,0.72]
[1764533225990,0.69,137.92,137.89,15.43283837]
[1764533226168,0.69,137.92,137.89,12.97283837]
[1764533226368,0.69,137.92,137.89,16.15283837]
[1764533227069,7.25016605,137.93,137.9,4.16289345]
[1764533227373,7.94016605,137.93,137.9,4.16289345]
[1764533227563,7.94016605,137.93,137.9,65.66289345]
[1764533229572,7.94016605,137.93,137.9,62.22]
[1764533232486,0.69,137.93,137.9,69.47158739]
[1764533232692,15.43283837,137.95,137.91,0.72]
[1764533232895,0.69,137.94,137.91,61.5]
[1764533233093,4.13289345,137.94,137.91,61.5]
[1764533233473,0.69,137.93,137.91,61.5]
[1764533235095,0.69,137.93,137.91,68.75107984]
[1764533236671,0.69,137.93,137.91,71.93107984]
[1764533238007,7.24919828,137.96,137.92,3.44289345]
[1764533238172,0.79,138.04,138.0,8.95210649]
[1764533238493,0.79,138.04,138.03,3.44289345]
[1764533238692,0.79,138.04,138.03,6.64289345]
[1764533238897,0.79,138.04,138.03,3.2]
[1764533239490,0.79,138.04,138.03,3.44289345]
[1764533242396,0.79,138.04,138.03,2.20181055]
[1764533243691,0.1,138.04,138.03,2.20181055]
[1764533244065,0.78,138.04,138.03,2.20181055]
[1764533245712,0.78,138.04,138.03,18.25655732]
[1764533245999,0.1,138.04,138.03,18.25655732]
[1764533246178,0.1,138.04,138.03,25.49930957]
[1764533249981,0.1,138.04,138.03,28.67930957]
[1764533251285,0.1,138.04,138.03,90.17930957]
[1764533252699,0.1,138.04,138.03,28.67930957]
[1764533254212,0.8,138.04,138.03,28.67930957]
[1764533255209,0.8,138.04,138.03,21.43450772]
[1764533255714,0.8,138.04,138.03,10.42275225]
[1764533255879,0.8,138.04,138.03,2.20181055]
[1764533256387,0.8,138.04,138.02,8.80994492]
[1764533256711,8.04429719,138.04,138.01,63.70181055]
[1764533256886,8.04429719,138.04,137.99,16.05652266]
[1764533256887,8.04429719,138.04,137.99,16.053177]
[1764533257086,7.24532676,138.02,137.99,2.20181055]
[1764533257501,0.7,138.01,137.99,2.20181055]
[1764533257691,0.7,138.01,138.0,2.20181055]
[1764533267104,0.7,138.01,137.99,9.448673]
[1764533267304,2.20181055,138.0,137.95,61.5]
[1764533267505,2.20181055,137.99,137.94,18.26098281]
[1764533267898,0.7,137.98,137.94,18.26098281]
[1764533268100,0.7,137.98,137.94,16.05917226]
[1764533268297,0.7,137.98,137.94,18.26098281]
[1764533269001,0.7,137.98,137.94,16.05917226]
[1764533273307,7.94748481,137.98,137.94,16.05917226]
[1764533273509,0.7,137.97,137.94,16.05917226]
[1764533273712,0.7,137.97,137.94,77.55917226]
[1764533277923,0.72,137.97,137.95,2.20181055]
[1764533278131,0.72,137.97,137.95,64.68]
[1764533279224,0.72,137.97,137.95,71.92879647]
[1764533280748,0.72,137.97,137.95,68.74879647]
[1764533281232,0.72,137.97,137.95,61.5]
[1764533283924,0.72,137.97,137.94,16.05915937]
[1764533289955,0.72,137.97,137.94,79.76096992]
[1764533290128,0.72,137.99,137.95,5.38181055]
[1764533290329,0.72,138.0,137.95,5.38181055]
[1764533290628,0.72,138.0,137.95,66.88181055]
[1764533291932,7.96687706,138.0,137.95,74.13043214]
[1764533292538,0.72,137.99,137.96,2.20181055]
[1764533294443,7.96700695,137.99,137.96,2.20181055]
[1764533295446,0.72,137.98,137.96,2.20181055]
[1764533295847,0.72,137.98,137.96,63.70181055]
[1764533296352,0.72,137.98,137.96,61.5]
[1764533297051,7.96744373,137.98,137.96,61.5]
[1764533297526,0.72,137.97,137.96,61.5]
[1764533302643,7.96795245,137.97,137.96,61.5]
[1764533307971,7.96795245,137.97,137.94,77.55944169]
[1764533308137,7.24690194,137.99,137.94,77.55944169]
[1764533308333,0.71,137.96,137.94,77.55944169]
[1764533311266,7.91768877,137.98,137.94,81.0046063]
[1764533311465,0.67,137.97,137.94,81.0046063]
[1764533313170,3.44516461,138.01,137.95,3.44516461]
[1764533313369,0.67,137.99,137.95,68.12516461]
[1764533314972,7.91695872,137.99,137.95,75.37401446]
[1764533315470,0.67,137.98,137.95,71.92884985]
[1764533315672,0.67,137.98,137.95,75.37401446]
[1764533318168,0.67,138.0,137.97,3.44516461]
[1764533318367,0.67,137.99,137.96,12.25510953]
[1764533318578,0.67,137.99,137.96,18.30810095]
[1764533319282,0.67,137.99,137.96,19.50328489]
[1764533319772,0.67,137.99,137.96,81.00328489]
[1764533321593,7.91699492,137.99,137.96,61.5]
[1764533322072,0.67,137.98,137.96,61.5]
[1764533325559,0.67,137.98,137.95,13.87393561]
[1764533325777,0.67,137.98,137.95,10.69393561]
[1764533325982,0.67,137.98,137.95,13.87393561]
[1764533327285,0.67,137.98,137.95,7.248771]
[1764533327588,0.67,137.98,137.95,16.05871592]
[1764533327788,0.67,137.98,137.95,19.50388053]
[1764533327973,0.67,137.98,137.95,16.05871592]
[1764533330360,7.91747596,137.98,137.94,10.42939615]
[1764533330681,11.36264057,137.98,137.93,6.62516461]
[1764533330878,0.67,137.97,137.93,3.18]
[1764533331379,0.67,137.97,137.93,10.42989696]
[1764533331573,7.91801919,137.97,137.93,71.92989696]
[1764533332080,0.67,137.96,137.93,71.92989696]
[1764533334190,0.67,137.96,137.93,75.37506157]
[1764533335185,3.44516461,137.95,137.9,16.74961917]
[1764533335364,11.36368109,137.96,137.9,10.69662775]
[1764533335567,0.72,137.95,137.9,10.69662775]
[1764533336382,7.96943005,137.95,137.9,10.69662775]
[1764533336865,0.72,137.94,137.9,10.69662775]
[1764533338496,7.24889431,137.96,137.92,3.44516461]
[1764533338680,0.72,137.94,137.92,3.44516461]
[1764533340369,0.72,137.94,137.92,64.94516461]
[1764533341170,0.72,137.94,137.92,72.19569542]
[1764533341670,0.72,137.95,137.93,3.44516461]
[1764533341870,0.72,137.95,137.93,61.5]
[1764533342888,0.72,137.95,137.93,64.94516461]
[1764533343676,28.80993661,138.01,137.94,12.25510953]
[1764533343897,0.72,137.98,137.96,3.44516461]
[1764533349386,0.72,137.98,137.96,64.94516461]
[1764533352609,0.72,137.98,137.96,3.44516461]
[1764533352781,0.72,137.98,137.93,61.5]
[1764533352782,3.44516461,137.97,137.93,61.5]
[1764533352983,3.44516461,137.97,137.93,8.80994492]
[1764533353189,0.72,137.96,137.93,8.80994492]
[1764533354280,0.72,137.96,137.93,12.25510953]
[1764533356110,0.72,137.96,137.93,19.50492732]
[1764533356283,0.72,137.96,137.94,3.44516461]
[1764533358208,11.41387142,137.96,137.91,67.55299142]
[1764533358411,11.41387142,137.96,137.91,64.68]
[1764533358412,3.44516461,137.95,137.91,64.68]
[1764533358596,0.72,137.95,137.91,64.68]
[1764533358801,0.72,137.94,137.91,64.68]
[1764533359705,0.72,137.94,137.91,75.37623007]
[1764533362009,0.72,137.94,137.91,71.93106546]
[1764533362312,0.72,137.94,137.91,72.19623007]
[1764533364491,0.72,137.94,137.91,70.95712567]
[1764533372320,0.67,137.93,137.9,21.44745757]
[1764533373422,0.67,137.93,137.91,2.20606021]